bitfinex/quotes_BTCUSD_20240828
["timestamp","ask_amount","ask_price","bid_price","bid_amount"]
[1724878001082,0.00061647,59428.0,59427.0,0.92636664]
[1724878002235,0.00061647,59428.0,59427.0,0.53828958]
[1724878002602,0.00061647,59428.0,59427.0,0.01046958]
[1724878002980,0.16888647,59428.0,59427.0,0.01046958]
[1724878003190,0.50542747,59428.0,59427.0,0.01046958]
[1724878003459,1.31810947,59428.0,59427.0,0.01046958]
[1724878003629,0.64502747,59428.0,59427.0,0.01046958]
[1724878003832,0.64502747,59428.0,59427.0,0.0008998]
[1724878003995,0.98156847,59428.0,59427.0,0.0008998]
[1724878004784,0.98773021,59428.0,59427.0,0.0008998]
[1724878004983,0.64502747,59428.0,59427.0,0.0008998]
[1724878006040,0.98156847,59428.0,59427.0,0.0008998]
[1724878006927,1.41810947,59428.0,59427.0,0.0008998]
[1724878011790,1.89808144,59428.0,59427.0,0.0008998]
[1724878012021,1.75665047,59428.0,59427.0,0.0008998]
[1724878012243,1.76165047,59428.0,59427.0,0.0008998]
[1724878013153,1.75665047,59428.0,59427.0,0.0008998]
[1724878013376,1.51898293,59428.0,59427.0,0.0008998]
[1724878013577,1.41810947,59428.0,59427.0,0.0008998]
[1724878013778,1.75465047,59428.0,59427.0,0.0008998]
[1724878013980,1.75665047,59428.0,59427.0,0.0008998]
[1724878015321,1.42010947,59428.0,59427.0,0.0008998]
[1724878016492,1.75665047,59428.0,59427.0,0.0008998]
[1724878017331,1.75465047,59428.0,59427.0,0.0008998]
[1724878017552,1.41810947,59428.0,59427.0,0.0008998]
[1724878017758,1.42010947,59428.0,59427.0,0.0008998]
[1724878018206,1.75665047,59428.0,59427.0,0.0008998]
[1724878018421,1.75465047,59428.0,59427.0,0.0008998]
[1724878019288,1.75965047,59428.0,59427.0,0.0008998]
[1724878019550,1.76165047,59428.0,59427.0,0.0008998]
[1724878021007,1.76165047,59428.0,59417.0,0.0008998]
[1724878021008,1.659491,59418.0,59417.0,0.0008998]
[1724878021234,2.23170974,59418.0,59417.0,0.0008998]
[1724878021455,2.33170974,59418.0,59417.0,0.0008998]
[1724878021669,2.45774908,59418.0,59417.0,0.0008998]
[1724878022350,2.50026138,59418.0,59417.0,0.0008998]
[1724878022581,2.50026138,59418.0,59407.0,0.0009009]
[1724878022582,1.89966374,59408.0,59407.0,0.0009009]
[1724878022996,0.168395,59384.0,59383.0,0.0009009]
[1724878023690,0.168395,59384.0,59383.0,0.00904907]
[1724878023914,0.168395,59384.0,59383.0,0.0009009]
[1724878024142,0.168395,59384.0,59383.0,0.00904907]
[1724878024368,0.336763,59389.0,59383.0,0.0009009]
[1724878024609,0.336769,59388.0,59383.0,0.00904907]
[1724878024743,0.505186,59384.0,59383.0,0.00904907]
[1724878025177,0.23562074,59391.0,59383.0,0.0009009]
[1724878025398,0.168392,59385.0,59384.0,0.02345594]
[1724878025623,0.505177,59385.0,59384.0,0.02345594]
[1724878025862,0.505177,59385.0,59384.0,0.00819103]
[1724878026311,0.168395,59384.0,59383.0,0.0009009]
[1724878026734,2.00037974,59384.0,59383.0,0.0009009]
[1724878026957,2.00237974,59384.0,59383.0,0.0009009]
[1724878027206,2.0086642,59384.0,59383.0,0.0009009]
[1724878028984,1.6006732,59384.0,59383.0,0.0009009]
[1724878029412,1.6026732,59384.0,59383.0,0.0009009]
[1724878031895,1.6006732,59384.0,59383.0,0.0009009]
[1724878035321,1.65839289,59384.0,59383.0,0.0009009]
[1724878035521,1.6006732,59384.0,59383.0,0.0009009]
[1724878036152,1.6026732,59384.0,59383.0,0.0009009]
[1724878036576,1.9444642,59384.0,59383.0,0.0009009]
[1724878037420,2.0067642,59384.0,59383.0,0.0009009]
[1724878038238,2.17531584,59384.0,59383.0,0.0009009]
[1724878038441,0.842202,59368.0,59367.0,0.008998]
[1724878038644,0.842202,59368.0,59367.0,0.0174197]
[1724878038645,1.07782274,59368.0,59367.0,0.0174197]
[1724878039079,1.41470374,59368.0,59367.0,0.008998]
[1724878039703,1.42077988,59368.0,59367.0,0.008998]
[1724878041027,0.84827814,59368.0,59367.0,0.008998]
[1724878041283,0.505321,59368.0,59367.0,0.084398]
[1724878041511,0.505321,59368.0,59367.0,0.0928378]
[1724878041718,0.505321,59368.0,59367.0,0.1012595]
[1724878041945,0.505321,59368.0,59367.0,0.0928378]
[1724878042369,0.57247274,59374.0,59367.0,0.10127326]
[1724878042646,0.336864,59371.0,59368.0,0.0609]
[1724878042864,0.505306,59370.0,59369.0,0.00842754]
[1724878043294,0.505276,59374.0,59369.0,0.02380009]
[1724878043507,0.168424,59374.0,59370.0,0.168434]
[1724878043737,0.168424,59374.0,59371.0,0.168432]
[1724878043933,0.168429,59372.0,59371.0,0.00841963]
[1724878044183,0.505288,59372.0,59371.0,0.00841963]
[1724878044389,0.168426,59373.0,59371.0,0.00841963]
[1724878044608,0.168426,59373.0,59369.0,0.168437]
[1724878044828,0.168432,59371.0,59370.0,0.00842358]
[1724878045046,0.336848,59374.0,59368.0,0.0609]
[1724878045273,0.168428,59373.0,59369.0,0.17686354]
[1724878045480,0.168433,59371.0,59369.0,0.00842754]
[1724878045691,0.505285,59373.0,59369.0,0.00842754]
[1724878045893,0.16843,59372.0,59369.0,0.00842754]
[1724878046558,0.168432,59371.0,59369.0,0.00842754]
[1724878046765,0.168438,59369.0,59368.0,0.06060344]
[1724878046973,0.505314,59369.0,59368.0,0.06060344]
[1724878048430,0.168438,59369.0,59368.0,0.07510358]
[1724878048617,0.33686,59372.0,59368.0,0.24354258]
[1724878048618,0.168432,59372.0,59368.0,0.24354258]
[1724878049077,0.168432,59372.0,59368.0,0.22904244]
[1724878050169,0.168432,59371.0,59368.0,0.06060344]
[1724878050410,0.168438,59369.0,59368.0,0.06060344]
[1724878050629,0.50511134,59369.0,59368.0,0.06060344]
[1724878051443,0.50511134,59369.0,59368.0,0.05560344]
[1724878052424,1.17886334,59369.0,59368.0,0.0009009]
[1724878053252,1.81085597,59369.0,59368.0,0.0009009]
[1724878053462,1.69433934,59369.0,59368.0,0.0009009]
[1724878053668,1.69433934,59369.0,59362.0,0.008998]
[1724878053669,1.50180574,59363.0,59362.0,0.008998]
[1724878054111,1.83871574,59363.0,59362.0,0.01829285]
[1724878054336,1.93871574,59363.0,59362.0,0.01829285]
[1724878054549,2.17126738,59363.0,59362.0,0.008998]
[1724878054752,2.17126738,59363.0,59341.0,0.0798]
[1724878054753,0.007,59361.0,59336.0,0.0633]
[1724878054906,0.007,59361.0,59323.0,0.088798]
[1724878054907,0.580694,59336.0,59325.0,0.0633]
[1724878055125,0.917757,59336.0,59325.0,0.0633]
[1724878055286,0.842715,59332.0,59325.0,0.0633]
[1724878055487,1.179801,59332.0,59323.0,0.088798]
[1724878055898,1.22896309,59332.0,59323.0,0.008998]
[1724878056326,1.64774909,59332.0,59323.0,0.008998]
[1724878056545,1.361501,59332.0,59323.0,0.008998]
[1724878056779,1.41688774,59332.0,59323.0,0.008998]
[1724878056942,1.41888774,59332.0,59323.0,0.008998]
[1724878057143,1.41688774,59332.0,59323.0,0.008998]
[1724878057391,1.92952538,59332.0,59323.0,0.008998]
[1724878057566,1.260858,59324.0,59323.0,0.008998]
[1724878057775,1.67027874,59324.0,59323.0,0.008998]
[1724878058053,2.11860079,59324.0,59323.0,0.008998]
[1724878058201,1.76446979,59324.0,59323.0,0.008998]
[1724878058397,2.46328939,59324.0,59323.0,0.008998]
[1724878058628,1.330596,59312.0,59311.0,0.0004]
[1724878058801,2.12711785,59312.0,59311.0,1e-06]
[1724878059022,0.522876,59303.0,59291.0,0.0004]
[1724878059235,1.72660085,59303.0,59291.0,0.0004]
[1724878059494,1.360278,59303.0,59291.0,0.0004]
[1724878059840,1.38357788,59303.0,59291.0,0.0004]
[1724878060037,1.73290073,59303.0,59291.0,0.0004]
[1724878060263,2.12787142,59303.0,59291.0,0.0004]
[1724878060443,2.07015173,59303.0,59291.0,0.0004]
[1724878060661,1.73290073,59303.0,59291.0,0.0004]
[1724878060833,1.67922758,59303.0,59291.0,0.0004]
[1724878061046,1.66922758,59303.0,59291.0,0.0004]
[1724878061262,1.36657788,59303.0,59291.0,0.0004]
[1724878061485,0.61217588,59303.0,59293.0,0.168652]
[1724878061690,0.61217588,59303.0,59294.0,0.0793]
[1724878062118,0.10629988,59303.0,59294.0,0.0793]
[1724878062341,0.0659,59319.0,59305.0,0.168619]
[1724878062564,0.0659,59319.0,59303.0,0.168624]
[1724878062565,0.337189,59314.0,59303.0,0.168624]
[1724878062783,0.33721,59311.0,59304.0,0.01220285]
[1724878063004,0.3372,59312.0,59300.0,0.0605]
[1724878063005,0.337213,59310.0,59300.0,0.0605]
[1724878063227,0.168614,59307.0,59303.0,0.00976704]
[1724878063688,0.34334205,59311.0,59303.0,0.00976704]
[1724878063921,1.09187486,59304.0,59303.0,0.00976704]
[1724878064158,1.267957,59304.0,59303.0,0.00976704]
[1724878064389,0.860127,59303.0,59302.0,0.009009]
[1724878064594,1.8302787,59303.0,59302.0,0.009009]
[1724878064799,1.88395185,59303.0,59302.0,0.009009]
[1724878065226,1.98395185,59303.0,59302.0,0.009009]
[1724878065429,2.00754468,59303.0,59302.0,0.009009]
[1724878065686,2.08534468,59303.0,59302.0,0.009009]
[1724878066129,2.19469604,59303.0,59302.0,0.009009]
[1724878066338,2.21769604,59303.0,59302.0,0.009009]
[1724878066567,2.19469604,59303.0,59302.0,0.009009]
[1724878066777,2.10334569,59303.0,59302.0,0.009009]
[1724878068289,2.15701884,59303.0,59302.0,0.009009]
[1724878068514,2.15701884,59303.0,59291.0,0.0004]
[1724878068515,1.9000577,59292.0,59291.0,0.0004]
[1724878068723,2.0000577,59292.0,59291.0,0.0004]
[1724878069204,2.0622577,59292.0,59291.0,0.0004]
[1724878069452,2.48409916,59292.0,59291.0,0.0004]
[1724878069678,2.49015419,59292.0,59291.0,0.0004]
[1724878069894,2.65783269,59292.0,59291.0,0.0004]
[1724878070095,2.99514569,59292.0,59291.0,1e-06]
[1724878070302,1.182994,59272.0,59271.0,0.0004]
[1724878070524,1.8944707,59272.0,59271.0,0.0004]
[1724878070741,1.9944707,59272.0,59271.0,0.0004]
[1724878071184,1.280994,59272.0,59271.0,0.0004]
[1724878071612,1.282994,59272.0,59271.0,0.0004]
[1724878072284,1.6620437,59272.0,59271.0,0.0004]
[1724878072945,1.9994707,59272.0,59271.0,0.0004]
[1724878073370,2.00560676,59272.0,59271.0,0.0004]
[1724878073614,2.0725126,59272.0,59271.0,0.0004]
[1724878073844,2.37275975,59272.0,59271.0,0.0004]
[1724878074057,2.19325391,59272.0,59271.0,0.0004]
[1724878074298,2.19325391,59272.0,59251.0,0.0616]
[1724878074299,1.181393,59252.0,59251.0,0.0004]
[1724878074540,1.281393,59252.0,59251.0,0.0004]
[1724878074766,1.424893,59252.0,59251.0,0.00904375]
[1724878074997,1.48008584,59252.0,59251.0,0.0004]
[1724878075228,1.81762684,59252.0,59251.0,0.0004]
[1724878075435,1.48008584,59252.0,59251.0,0.0004]
[1724878075853,1.42236615,59252.0,59251.0,0.0004]
[1724878076067,1.39517112,59252.0,59251.0,0.0004]
[1724878076718,0.97033012,59252.0,59251.0,0.0004]
[1724878077170,0.12647812,59252.0,59251.0,0.0658]
[1724878077406,0.337506,59259.0,59251.0,0.15507173]
[1724878077613,0.337515,59257.0,59251.0,0.1896429]
[1724878077843,0.168765,59254.0,59251.0,0.1874525]
[1724878078055,0.168765,59254.0,59251.0,0.15506793]
[1724878078263,0.00630456,59262.0,59251.0,0.15506793]
[1724878078476,0.002,59265.0,59251.0,0.1485]
[1724878078699,0.16877,59252.0,59251.0,0.1802283]
[1724878078904,0.506311,59252.0,59251.0,0.1485]
[1724878079586,0.943852,59252.0,59251.0,0.0004]
[1724878080043,1.31286951,59252.0,59251.0,0.0004]
[1724878080254,1.72591051,59252.0,59251.0,0.0004]
[1724878080469,1.72791051,59252.0,59251.0,0.0004]
[1724878080698,2.48274996,59252.0,59251.0,1e-06]
[1724878080910,1.258672,59243.0,59242.0,0.009009]
[1724878081159,1.605647,59232.0,59231.0,0.009409]
[1724878081407,2.0012967,59232.0,59231.0,0.01696369]
[1724878081657,0.97062497,59232.0,59231.0,0.009409]
[1724878081907,0.12648797,59232.0,59231.0,0.009409]
[1724878082141,0.10611608,59232.0,59231.0,0.071409]
[1724878082351,0.10611608,59232.0,59231.0,0.10424731]
[1724878082570,0.1,59232.0,59231.0,0.01822281]
[1724878082785,0.606482,59232.0,59231.0,0.01822281]
[1724878083014,0.606482,59232.0,59231.0,0.009409]
[1724878083232,0.27492455,59232.0,59231.0,0.009409]
[1724878083668,0.10609755,59232.0,59231.0,0.009409]
[1724878083876,0.17492455,59232.0,59231.0,0.01698908]
[1724878084120,0.606482,59232.0,59231.0,0.009409]
[1724878084578,0.944137,59232.0,59231.0,0.009409]
[1724878084966,0.606482,59232.0,59231.0,0.009409]
[1724878085196,0.63296735,59232.0,59231.0,0.009409]
[1724878085829,0.29531235,59232.0,59231.0,0.009409]
[1724878086044,0.12648535,59232.0,59231.0,0.009409]
[1724878086263,0.02648535,59232.0,59231.0,0.085009]
[1724878086492,0.168806,59240.0,59234.0,0.16882]
[1724878086717,0.0828,59250.0,59232.0,0.337653]
[1724878086718,0.6331547,59259.0,59240.0,0.0829]
[1724878086935,0.005,59260.0,59240.0,0.0829]
[1724878086936,0.168773,59251.0,59245.0,0.168789]
[1724878087158,0.168773,59251.0,59242.0,0.0658]
[1724878087159,0.506388,59243.0,59242.0,0.0658]
[1724878087354,0.0878,59241.0,59225.0,0.0829]
[1724878087605,0.844137,59232.0,59225.0,0.0829]
[1724878087799,0.844137,59232.0,59216.0,0.50540786]
[1724878087800,1.183792,59232.0,59219.0,0.0763]
[1724878087917,1.262792,59232.0,59216.0,0.56760786]
[1724878088117,1.362792,59232.0,59217.0,0.50540786]
[1724878088340,1.37382897,59232.0,59216.0,0.0622]
[1724878088540,1.393316,59232.0,59217.0,0.168868]
[1724878088798,1.393316,59232.0,59216.0,0.0622]
[1724878088799,1.39227903,59232.0,59216.0,0.0622]
[1724878089351,1.38727903,59232.0,59216.0,0.0622]
[1724878089592,1.89848567,59232.0,59216.0,0.0622]
[1724878089800,1.39227903,59232.0,59216.0,0.0622]
[1724878090004,1.39227903,59232.0,59231.0,0.093229]
[1724878090207,1.38727903,59232.0,59231.0,0.093229]
[1724878090412,1.30827903,59232.0,59231.0,0.093229]
[1724878091279,0.63296903,59232.0,59231.0,0.093229]
[1724878091702,1.30827903,59232.0,59231.0,0.093229]
[1724878092633,0.97062403,59232.0,59231.0,0.093229]
[1724878093063,1.30827903,59232.0,59231.0,0.093229]
[1724878093693,0.97062403,59232.0,59231.0,0.093229]
[1724878094060,1.30827903,59232.0,59231.0,0.093229]
[1724878094669,0.97062403,59232.0,59231.0,0.093229]
[1724878094874,1.05113603,59232.0,59231.0,0.093229]
[1724878095079,1.83969039,59232.0,59231.0,0.093229]
[1724878095320,1.99279623,59232.0,59231.0,0.093229]
[1724878095531,0.844422,59212.0,59211.0,0.009409]
[1724878095780,1.182191,59212.0,59211.0,0.009409]
[1724878096001,1.62696,59212.0,59211.0,0.009409]
[1724878096211,1.30868729,59212.0,59211.0,0.009409]
[1724878096709,0.97091829,59212.0,59211.0,0.009409]
[1724878096913,0.12649629,59212.0,59211.0,0.153709]
[1724878097128,0.1,59212.0,59211.0,0.1859695]
[1724878097354,0.02649584,59212.0,59211.0,0.16361276]
[1724878097819,0.02649584,59212.0,59211.0,0.67027476]
[1724878098061,0.02649584,59212.0,59211.0,0.1660887]
[1724878098293,0.506653,59212.0,59211.0,0.0857887]
[1724878098519,1.182191,59212.0,59211.0,0.0217887]
[1724878098742,1.182191,59212.0,59211.0,0.009409]
[1724878098972,1.184191,59212.0,59211.0,0.009409]
[1724878099397,1.182191,59212.0,59211.0,0.009409]
[1724878099807,1.30868729,59212.0,59211.0,0.009409]
[1724878100230,0.63314929,59212.0,59211.0,0.009409]
[1724878100939,0.63314929,59212.0,59211.0,0.089709]
[1724878101168,0.29538029,59212.0,59211.0,0.089709]
[1724878101412,0.12649629,59212.0,59211.0,0.089709]
[1724878101661,0.12649629,59212.0,59211.0,0.258596]
[1724878101662,0.02649629,59212.0,59211.0,0.258596]
[1724878101909,0.02649629,59212.0,59211.0,0.662271]
[1724878102137,0.02649629,59212.0,59211.0,0.145609]
[1724878102346,0.02649629,59212.0,59211.0,0.71057245]
[1724878102994,0.005,59239.0,59212.0,0.0659]
[1724878103222,0.168837,59229.0,59220.0,0.0659]
[1724878103429,0.337653,59233.0,59221.0,0.0403636]
[1724878103632,0.168848,59225.0,59221.0,0.05025363]
[1724878103880,0.337681,59228.0,59221.0,0.00989003]
[1724878104133,0.16885,59224.0,59221.0,0.00989003]
[1724878104594,0.337679,59228.0,59221.0,0.00989003]
[1724878104595,0.337696,59225.0,59221.0,0.00989003]
[1724878104900,0.337649,59233.0,59221.0,0.00989003]
[1724878105127,0.1,59232.0,59226.0,0.168844]
[1724878105370,0.1,59232.0,59228.0,0.0802]
[1724878105582,0.168807,59240.0,59232.0,0.168827]
[1724878105809,0.168811,59238.0,59233.0,0.0234727]
[1724878106051,0.1,59237.0,59233.0,0.00983669]
[1724878106300,0.005,59245.0,59233.0,0.00983669]
[1724878106301,0.337609,59241.0,59233.0,0.00983669]
[1724878106510,0.168811,59238.0,59234.0,0.03474997]
[1724878106719,0.337613,59240.0,59234.0,0.0122899]
[1724878106931,0.168819,59235.0,59234.0,0.0122899]
[1724878107160,0.168818,59236.0,59229.0,0.0659]
[1724878107442,0.168818,59236.0,59234.0,0.00983192]
[1724878107698,0.1,59235.0,59234.0,0.00983192]
[1724878107973,0.02648378,59239.0,59229.0,0.0659]
[1724878108197,0.02648378,59239.0,59238.0,0.16881]
[1724878108440,0.02648378,59239.0,59238.0,0.652531]
[1724878108679,0.02648378,59239.0,59238.0,1.36300648]
[1724878109630,0.02648378,59239.0,59238.0,1.02538548]
[1724878111912,0.02648378,59239.0,59238.0,1.36300648]
[1724878112137,0.02648378,59239.0,59238.0,1.16168613]
[1724878112346,0.02648378,59239.0,59238.0,1.49930713]
[1724878112764,0.000821,59252.0,59250.0,0.0802]
[1724878113199,0.02729463,59252.0,59251.0,0.01215338]
[1724878114296,0.02729463,59252.0,59251.0,0.18092638]
[1724878114546,0.02729463,59252.0,59251.0,0.58437338]
[1724878114766,0.02729463,59252.0,59251.0,1.02512038]
[1724878115135,0.00627664,59280.0,59260.0,0.0659]
[1724878115137,0.005,59285.0,59260.0,0.0659]
[1724878115138,0.3374,59277.0,59260.0,0.0659]
[1724878115281,0.84278386,59282.0,59269.0,0.0802]
[1724878115485,0.84278386,59282.0,59270.0,0.01181826]
[1724878115486,0.337393,59278.0,59270.0,0.01181826]
[1724878115700,0.337379,59281.0,59270.0,0.01181826]
[1724878115917,0.337418,59274.0,59270.0,0.01181826]
[1724878116168,0.337422,59273.0,59270.0,0.01181826]
[1724878116510,0.168708,59274.0,59270.0,0.01181826]
[1724878116731,0.168709,59274.0,59269.0,0.0802]
[1724878116927,0.168709,59274.0,59257.0,0.337508]
[1724878116928,0.50614,59272.0,59271.0,0.01181231]
[1724878117140,0.60614,59272.0,59271.0,0.01181231]
[1724878117348,0.168716,59271.0,59270.0,0.01181826]
[1724878117791,0.168716,59271.0,59264.0,0.0802]
[1724878117970,0.337433,59271.0,59270.0,0.01181826]
[1724878118181,0.168721,59270.0,59264.0,0.0802]
[1724878119005,0.168722,59269.0,59264.0,0.1454329]
[1724878119236,0.168722,59269.0,59264.0,0.0802]
[1724878119437,0.12646729,59272.0,59264.0,0.0802]
[1724878119571,0.337441,59270.0,59264.0,0.0802]
[1724878119780,0.168726,59268.0,59264.0,0.0802]
[1724878119960,0.168728,59267.0,59264.0,0.0802]
[1724878120191,0.16873,59266.0,59264.0,0.0802]
[1724878120457,0.168727,59268.0,59264.0,0.0802]
[1724878120600,0.1,59273.0,59264.0,0.0802]
[1724878120817,0.02646784,59268.0,59264.0,0.15655886]
[1724878121018,0.02646784,59268.0,59265.0,0.506198]
[1724878121294,0.02646784,59268.0,59267.0,0.337455]
[1724878121502,0.02646784,59268.0,59267.0,0.989737]
[1724878121686,0.02646784,59268.0,59267.0,0.652282]
[1724878121895,0.02646784,59268.0,59267.0,0.989737]
[1724878122211,0.000818,59270.0,59267.0,0.989737]
[1724878122212,0.000818,59270.0,59269.0,0.506166]
[1724878122343,0.000818,59270.0,59269.0,0.84361]
[1724878122546,0.000818,59270.0,59269.0,0.9936065]
[1724878122755,0.000818,59270.0,59269.0,1.0764065]
[1724878123129,0.000818,59270.0,59269.0,1.1382065]
[1724878123340,0.000818,59270.0,59269.0,1.4756505]
[1724878123545,0.000818,59270.0,59269.0,1.8130945]
[1724878123958,0.000818,59270.0,59269.0,1.8180945]
[1724878124165,0.000818,59270.0,59269.0,1.8538745]
[1724878124773,0.000818,59270.0,59269.0,1.8638745]
[1724878124903,0.02646085,59292.0,59277.0,0.1446]
[1724878125109,0.50540786,59284.0,59283.0,0.168682]
[1724878125314,0.02646085,59292.0,59288.0,0.168667]
[1724878125724,0.02646085,59292.0,59290.0,0.0828]
[1724878126119,0.02646085,59292.0,59290.0,0.09443262]
[1724878126378,0.19511785,59292.0,59290.0,0.01163262]
[1724878126605,0.514158,59291.0,59286.0,0.0828]
[1724878126860,0.345499,59291.0,59290.0,0.01163262]
[1724878127106,0.168663,59290.0,59286.0,0.0828]
[1724878127348,0.00818,59291.0,59290.0,0.168662]
[1724878127576,0.00818,59291.0,59290.0,0.650587]
[1724878127811,0.00818,59291.0,59290.0,0.673587]
[1724878128035,0.00818,59291.0,59290.0,0.68521962]
[1724878129001,0.00818,59291.0,59290.0,0.15623262]
[1724878129461,0.00818,59291.0,59290.0,0.01163262]
[1724878129462,0.514158,59291.0,59290.0,0.01163262]
[1724878129928,0.168671,59287.0,59281.0,0.168687]
[1724878130153,0.168671,59287.0,59282.0,0.02988346]
[1724878130435,0.505992,59290.0,59283.0,0.168681]
[1724878130690,0.0264584,59286.0,59282.0,0.19856746]
[1724878130921,0.0264584,59286.0,59279.0,0.482084]
[1724878130922,0.168683,59283.0,59279.0,0.1447]
[1724878131158,0.168678,59285.0,59279.0,0.1447]
[1724878131395,0.0264584,59286.0,59281.0,0.337373]
[1724878131629,0.0264584,59286.0,59279.0,0.1447]
[1724878131630,0.0264584,59286.0,59282.0,0.168685]
[1724878132060,0.01762262,59285.0,59282.0,0.168685]
[1724878132263,0.01762262,59285.0,59282.0,0.0650765]
[1724878132489,0.01762262,59285.0,59282.0,0.2337605]
[1724878133585,0.01762262,59285.0,59284.0,0.506038]
[1724878133790,0.01762262,59285.0,59284.0,0.588238]
[1724878134256,0.01762262,59285.0,59284.0,0.925597]
[1724878134731,0.01762262,59285.0,59284.0,1.348456]
[1724878137919,0.04407917,59285.0,59284.0,1.348456]
[1724878138135,0.04407917,59285.0,59284.0,1.4833016]
[1724878139411,0.04407917,59285.0,59284.0,1.011097]
[1724878140551,0.04407917,59285.0,59284.0,1.02254649]
[1724878142172,0.04407917,59285.0,59284.0,0.01144949]
[1724878142386,0.168685,59282.0,59274.0,0.4768]
[1724878142593,0.86100462,59285.0,59284.0,0.01144856]
[1724878142830,0.86100462,59285.0,59271.0,0.0634]
[1724878142831,0.35497562,59285.0,59271.0,0.0634]
[1724878143061,0.35497562,59285.0,59284.0,0.01145045]
[1724878143062,0.01762262,59285.0,59284.0,0.01145045]
[1724878143291,0.01762262,59285.0,59281.0,0.168686]
[1724878143519,0.01762262,59285.0,59284.0,0.01145379]
[1724878143718,0.01762262,59285.0,59283.0,0.168681]
[1724878143948,0.01762262,59285.0,59284.0,0.51749179]
[1724878145266,0.01762262,59285.0,59284.0,0.18013279]
[1724878145482,0.01762262,59285.0,59284.0,0.01145379]
[1724878145961,0.01762262,59285.0,59284.0,0.01147186]
[1724878146177,0.01762262,59285.0,59284.0,0.58755339]
[1724878146400,0.01762262,59285.0,59284.0,0.59902525]
[1724878146821,0.01762262,59285.0,59284.0,0.43034625]
[1724878147037,0.01762262,59285.0,59284.0,0.95938425]
[1724878147247,0.01762262,59285.0,59284.0,0.62202525]
[1724878148103,0.01762262,59285.0,59284.0,0.60400986]
[1724878148310,0.01762262,59285.0,59284.0,0.26665086]
[1724878148514,0.01762262,59285.0,59284.0,0.60400986]
[1724878148716,0.01762262,59285.0,59284.0,0.94136886]
[1724878151556,0.01762262,59285.0,59284.0,0.60400986]
[1724878151768,0.18629862,59285.0,59284.0,0.01147186]
[1724878151964,0.18629862,59285.0,59280.0,0.00020307]
[1724878151965,0.168688,59281.0,59280.0,0.00020307]
[1724878152177,0.168688,59281.0,59280.0,0.01167981]
[1724878152178,0.84344,59281.0,59280.0,0.01167981]
[1724878152389,0.84344,59281.0,59280.0,0.00020307]
[1724878153010,1.259316,59281.0,59280.0,0.00020307]
[1724878155243,1.28578061,59281.0,59280.0,0.00020307]
[1724878156309,1.62315661,59281.0,59280.0,0.00020307]
[1724878156521,1.78555661,59281.0,59280.0,0.00020307]
[1724878156758,2.12993261,59281.0,59280.0,0.00020307]
[1724878157174,1.650548,59271.0,59254.0,0.4768]
[1724878157511,1.750548,59271.0,59254.0,0.4768]
[1724878157928,1.79464193,59271.0,59254.0,0.4768]
[1724878158205,1.79464193,59271.0,59248.0,0.50540786]
[1724878158632,2.13707493,59271.0,59248.0,0.50540786]
[1724878158849,2.13907493,59271.0,59248.0,0.50540786]
[1724878159287,2.13707493,59271.0,59248.0,0.50540786]
[1724878160656,2.18749135,59271.0,59248.0,0.50540786]
[1724878160878,2.13707493,59271.0,59248.0,0.50540786]
[1724878161084,2.18749135,59271.0,59248.0,0.50540786]
[1724878161292,2.13707493,59271.0,59248.0,0.50540786]
[1724878161491,2.18749135,59271.0,59248.0,0.50540786]
[1724878161671,2.17308642,59271.0,59248.0,0.50540786]
[1724878161941,2.17925911,59271.0,59248.0,0.50540786]
[1724878162371,2.17425911,59271.0,59248.0,0.50540786]
[1724878162788,2.1477878,59271.0,59248.0,0.50540786]
[1724878163230,1.8103548,59271.0,59248.0,0.50540786]
[1724878163436,1.8103548,59271.0,59255.0,0.0751]
[1724878164068,1.83682629,59271.0,59255.0,0.0751]
[1724878164279,1.84182629,59271.0,59245.0,0.1393]
[1724878164501,1.89065434,59271.0,59249.0,0.50540786]
[1724878164704,2.06120598,59271.0,59249.0,0.50540786]
[1724878164912,2.39863898,59271.0,59249.0,0.50540786]
[1724878165148,2.44904652,59271.0,59249.0,0.50540786]
[1724878165389,1.89065434,59271.0,59249.0,0.50540786]
[1724878165624,1.94106188,59271.0,59249.0,0.50540786]
[1724878165862,1.84182629,59271.0,59249.0,0.50540786]
[1724878167836,1.84382629,59271.0,59249.0,0.50540786]
[1724878169209,1.84182629,59271.0,59249.0,0.50540786]
[1724878169867,2.18125929,59271.0,59249.0,0.50540786]
[1724878170515,2.17925929,59271.0,59249.0,0.50540786]
[1724878170725,2.17925929,59271.0,59260.0,0.0632]
[1724878170726,1.44469329,59271.0,59260.0,0.0632]
[1724878172937,1.4182218,59271.0,59260.0,0.0632]
[1724878173199,1.3408218,59271.0,59260.0,0.0632]
[1724878173406,1.0033888,59271.0,59260.0,0.0632]
[1724878173616,1.3408218,59271.0,59267.0,0.0773]
[1724878174316,1.3408218,59271.0,59260.0,0.0632]
[1724878174317,1.3408218,59271.0,59260.0,0.1408]
[1724878174988,1.3408218,59271.0,59260.0,0.309547]
[1724878175179,1.3408218,59271.0,59254.0,0.337526]
[1724878175180,1.8255548,59271.0,59254.0,0.1475]
[1724878175424,2.1699878,59271.0,59249.0,0.0819]
[1724878175657,2.21881585,59271.0,59249.0,0.0819]
[1724878175882,2.24528972,59271.0,59249.0,0.0819]
[1724878176345,2.24528972,59271.0,59250.0,0.50540786]
[1724878176780,1.85202867,59271.0,59250.0,0.50540786]
[1724878176988,1.85702867,59271.0,59255.0,0.0825]
[1724878178676,2.19646167,59271.0,59251.0,0.50540786]
[1724878178997,1.85702867,59271.0,59251.0,0.50540786]
[1724878179237,1.85702867,59271.0,59249.0,0.0753]
[1724878179238,2.37301331,59271.0,59249.0,0.0753]
[1724878179445,0.843837,59253.0,59252.0,0.50540786]
[1724878179854,0.506311,59252.0,59251.0,0.0821]
[1724878180093,0.506311,59252.0,59247.0,0.0656]
[1724878180094,0.2956497,59252.0,59247.0,0.0656]
[1724878180370,1.280674,59248.0,59247.0,0.0656]
[1724878180587,0.844195,59228.0,59227.0,0.0821]
[1724878180813,0.506517,59228.0,59227.0,0.0821]
[1724878181535,0.53300293,59228.0,59227.0,0.0821]
[1724878181766,0.506542,59225.0,59224.0,0.0618]
[1724878183495,0.506542,59225.0,59222.0,0.0801]
[1724878183496,0.506559,59223.0,59222.0,0.0801]
[1724878183710,0.02648593,59228.0,59214.0,0.0602]
[1724878183711,0.32213563,59228.0,59214.0,0.0602]